fUSD/lending_fUSD_20260128
["ID","MTS","AMOUNT","RATE_DAILY","PERIOD"]
[403840513,1769586650447,-151.0,0.00021,2]
[403840514,1769586650457,-1267.0,0.00021,2]
[403840515,1769586650467,-152.0,0.00021,2]
[403840516,1769586650476,-151.0,0.00021,2]
[403840517,1769586650485,-1267.0,0.00021,2]
[403840518,1769586650495,-151.0,0.00021,2]
[403840519,1769586650504,-151.0,0.00021,2]
[403840520,1769586650515,-152.0,0.00021,2]
[403840521,1769586650525,-151.0,0.00021,2]
[403840522,1769586650535,-1267.0,0.00021,2]
[403840523,1769586650544,-151.0,0.00021,2]
[403840524,1769586650553,-151.0,0.00021,2]
[403840525,1769586650563,-1267.0,0.00021,2]
[403840526,1769586650573,-151.0,0.00021,2]
[403840527,1769586650583,-152.0,0.00021,2]
[403840528,1769586650592,-151.0,0.00021,2]
[403840529,1769586650601,-151.0,0.00021,2]
[403840530,1769586650611,-151.0,0.00021,2]
[403840531,1769586650620,-1267.0,0.00021,2]
[403840532,1769586650629,-151.0,0.00021,2]
[403840533,1769586650638,-152.0,0.00021,2]
[403840534,1769586650648,-1267.0,0.00021,2]
[403840535,1769586650662,-151.0,0.00021,2]
[403840536,1769586650680,-152.0,0.00021,2]
[403840537,1769586650699,-1267.0,0.00021,2]
[403840538,1769586650716,-151.0,0.00021,2]
[403840539,1769586650727,-151.0,0.00021,2]
[403840540,1769586650736,-152.0,0.00021,2]
[403840541,1769586650746,-1267.0,0.00021,2]
[403840542,1769586650757,-152.0,0.00021,2]
[403840543,1769586650767,-1267.0,0.00021,2]
[403840544,1769586650777,-152.0,0.00021,2]
[403840545,1769586650787,-1267.0,0.00021,2]
[403840546,1769586650797,-151.0,0.00021,2]
[403840547,1769586650806,-152.0,0.00021,2]
[403840548,1769586650816,-1267.0,0.00021,2]
[403840549,1769586650826,-1267.0,0.00021,2]
[403840550,1769586650835,-1267.0,0.00021,2]
[403840551,1769586650846,-1267.0,0.00021,2]
[403840552,1769586650856,-1267.0,0.00021,2]
[403840553,1769586650865,-151.0,0.00021,2]
[403840554,1769586650876,-1267.0,0.00021,2]
[403840555,1769586650886,-151.0,0.00021,2]
[403840556,1769586650895,-1267.0,0.00021,2]
[403840557,1769586650903,-151.0,0.00021,2]
[403840558,1769586650915,-1267.0,0.00021,2]
[403840559,1769586650925,-151.0,0.00021,2]
[403840560,1769586650934,-1267.0,0.00021,2]
[403840561,1769586650945,-151.0,0.00021,2]
[403840562,1769586650954,-1267.0,0.00021,2]
[403840563,1769586650965,-152.50126102,0.00021,2]
[403840564,1769586650976,-166.0,0.00021,2]
[403840565,1769586650986,-170.47665606,0.00021,2]
[403840566,1769586650997,-158.0,0.00021,2]
[403840567,1769586651007,-500.0,0.00021,2]
[403840568,1769586651018,-500.0,0.00021,10]
[403840569,1769586651028,-500.0,0.00021,2]
[403840570,1769586651037,-500.0,0.00021,10]
[403840571,1769586651046,-500.0,0.00021,2]
[403840572,1769586651055,-556.46974885,0.00021,2]
[403840573,1769586651064,-1000.0,0.00021005,2]
[403840574,1769586651073,-1000.0,0.00021016,2]
[403840575,1769586651083,-150.0,0.00021032,2]
[403840576,1769586651091,-152.0,0.00021063,4]
[403840577,1769586651102,-150.0,0.00021104,2]
[403840578,1769586651112,-150.0,0.00021137,2]
[403840579,1769586651123,-150.0,0.00021137,2]
[403840580,1769586651134,-1000.0,0.0002114,2]
[403840581,1769586651143,-334.48813345,0.00021148,2]
[403840582,1769586651155,-1000.0,0.00021162,2]
[403840583,1769586651165,-1000.0,0.00021182,2]
[403840584,1769586651174,-150.0,0.00021186,2]
[403840585,1769586651185,-303.0,0.000212,2]
[403840586,1769586651194,-1000.0,0.00021214,2]
[403840587,1769586651204,-576.03,0.00021241,2]
[403840588,1769586651216,-300.0,0.00021249,2]
[403840589,1769586651227,-1000.0,0.00021262,2]
[403840590,1769586651236,-1000.0,0.00021281,2]
[403840591,1769586651246,-1000.0,0.00021358,2]
[403840592,1769586651256,-6380.31,0.0002137,2]
[403840593,1769586651266,-1000.0,0.00021371,2]
[403840594,1769586651276,-1000.0,0.00021389,2]
[403840595,1769586651286,-150.0,0.00021404,2]
[403840596,1769586651295,-359.76179104,0.00021419,2]
[403840597,1769586651305,-200.17585614,0.00021471,2]
[403840598,1769586651315,-166.66,0.00021486,2]
[403840599,1769586651325,-1000.0,0.00021496,2]
[403840600,1769586651335,-387.0,0.00021499,2]
[403840601,1769586651345,-300.0,0.00021499,2]
[403840602,1769586651355,-57567.23947044,0.000215,2]
[403840603,1769586651367,-222.2638941,0.000215,2]
[403840604,1769586651377,-1000.0,0.000215,2]
[403840605,1769586651386,-387.0,0.00021512,2]
[403840606,1769586651398,-281.98695942,0.00021519,2]
[403840607,1769586651408,-1000.0,0.00021538,2]
[403840608,1769586651417,-2000.0,0.00021554,7]
[403840609,1769586651427,-2000.0,0.00021554,7]
[403840610,1769586651436,-2000.0,0.00021554,7]
[403840611,1769586651447,-414.896,0.00021554,7]
[403840612,1769586651459,-1010.53040663,0.0002156,2]
[403840613,1769586651470,-1000.0,0.00021573,2]
[403840614,1769586651480,-150.0,0.0002159,2]
[403840615,1769586651489,-150.0,0.00021597,2]
[403840616,1769586651498,-387.0,0.00021606,2]
[403840617,1769586651508,-1000.0,0.00021612,2]
[403840618,1769586651518,-1000.0,0.00021622,2]
[403840619,1769586651527,-986.689,0.00021631,7]
[403840620,1769586651536,-1000.0,0.00021631,7]
[403840621,1769586651546,-1000.0,0.00021631,7]
[403840622,1769586651556,-1000.0,0.00021631,7]
[403840623,1769586651565,-1000.0,0.00021631,7]
[403840624,1769586651575,-1000.0,0.00021631,7]
[403840625,1769586651585,-387.0,0.00021636,2]
[403840626,1769586651594,-1000.0,0.00021643,2]
[403840627,1769586651603,-387.0,0.00021681,2]
[403840628,1769586651613,-5122.03509608,0.00021686,2]
[403840629,1769586651622,-150.0,0.0002171,2]
[403840630,1769586651632,-150.00001483,0.00021735,15]
[403840631,1769586651641,-387.0,0.00021746,2]
[403840632,1769586651651,-200.0,0.0002177,2]
[403840633,1769586651660,-485.30551,0.0002178,2]
[403840634,1769586651673,-485.30551,0.0002178,2]
[403840635,1769586651683,-485.30552,0.0002178,2]
[403840636,1769586651692,-1000.0,0.00021783,2]
[403840637,1769586651701,-200.0,0.00021823,2]
[403840638,1769586651711,-1000.0,0.0002183,2]
[403840639,1769586651720,-1000.0,0.00021834,2]
[403840640,1769586651729,-150.0,0.00021858,2]
[403840641,1769586651738,-150.0,0.00021885,2]
[403840642,1769586651749,-200.0,0.00021889,2]
[403840643,1769586651758,-1000.0,0.00021911,2]
[403840644,1769586651767,-500.0,0.00021917,2]
[403840645,1769586651776,-500.0,0.00021917,2]
[403840646,1769586651786,-500.0,0.00021917,2]
[403840647,1769586651795,-500.0,0.00021917,2]
[403840648,1769586651804,-500.0,0.00021917,2]
[403840649,1769586651814,-500.0,0.00021917,2]
[403840650,1769586651824,-500.0,0.00021917,2]
[403840651,1769586651834,-500.0,0.00021917,2]
[403840652,1769586651843,-500.0,0.00021917,2]
[403840653,1769586651852,-500.0,0.00021917,2]
[403840654,1769586651862,-500.0,0.00021917,2]
[403840655,1769586651871,-500.0,0.00021917,2]
[403840656,1769586651879,-380.64938174,0.00021917,2]
[403840657,1769586651889,-151.0,0.00021918,2]
[403840658,1769586651898,-5000.0,0.00021918,2]
[403840659,1769586651907,-177.073195,0.00021918,2]
[403840660,1769586651916,-177.073195,0.00021918,2]
[403840661,1769586651925,-177.073195,0.00021918,2]
[403840662,1769586651934,-177.073195,0.00021918,2]
[403840663,1769586651943,-177.073195,0.00021918,2]
[403840664,1769586651952,-177.073195,0.00021918,2]
[403840665,1769586651961,-177.073195,0.00021918,2]
[403840666,1769586651970,-177.073195,0.00021918,2]
[403840667,1769586651979,-151.0,0.00021918,2]
[403840668,1769586651988,-151.198748,0.00021918,2]
[403840669,1769586651998,-165.0,0.00021918,2]
[403840670,1769586652006,-165.0,0.00021918,2]
[403840671,1769586652015,-165.0,0.00021918,2]
[403840672,1769586652024,-165.0,0.00021918,2]
[403840673,1769586652033,-165.0,0.00021918,2]
[403840674,1769586652042,-165.0,0.00021918,2]
[403840675,1769586652051,-155.0,0.00021918,2]
[403840676,1769586652060,-165.0,0.00021918,2]
[403840677,1769586652069,-155.0,0.00021918,2]
[403840678,1769586652078,-165.0,0.00021918,2]
[403840679,1769586652087,-155.0,0.00021918,2]
[403840680,1769586652097,-168.35235479,0.00021918,2]
[403840681,1769586652105,-155.0,0.00021918,2]
[403840682,1769586652115,-155.0,0.00021918,2]
[403840683,1769586652124,-155.0,0.00021918,2]
[403840684,1769586652133,-155.0,0.00021918,2]
[403840685,1769586652142,-155.0,0.00021918,2]
[403840686,1769586652151,-155.0,0.00021918,2]
[403840687,1769586652160,-155.0,0.00021918,2]
[403840688,1769586652169,-155.0,0.00021918,2]
[403840689,1769586652178,-155.0,0.00021918,2]
[403840690,1769586652187,-155.0,0.00021918,2]
[403840691,1769586652196,-155.0,0.00021918,2]
[403840692,1769586652206,-155.0,0.00021918,2]
[403840693,1769586652215,-155.0,0.00021918,2]
[403840694,1769586652224,-155.0,0.00021918,2]
[403840695,1769586652233,-155.0,0.00021918,2]
[403840696,1769586652242,-155.0,0.00021918,2]
[403840697,1769586652250,-219.15698301,0.00021918,2]
[403840698,1769586652259,-800.0,0.00021918,4]
[403840699,1769586652268,-800.0,0.00021918,4]
[403840700,1769586652277,-800.0,0.00021918,4]
[403840701,1769586652286,-800.0,0.00021918,4]
[403840702,1769586652295,-800.0,0.00021918,4]
[403840703,1769586652303,-800.0,0.00021918,4]
[403840704,1769586652313,-800.0,0.00021918,4]
[403840705,1769586652321,-800.0,0.00021918,4]
[403840706,1769586652330,-500.0,0.00021918,2]
[403840707,1769586652339,-150.0,0.00021918,2]
[403840708,1769586652348,-150.0,0.00021918,2]
[403840709,1769586652358,-662.81965534,0.00021926,2]
[403840710,1769586652367,-1000.0,0.00021927,2]
[403840711,1769586652376,-1000.0,0.00021955,2]
[403840712,1769586652386,-500.0,0.00021973,2]
[403840713,1769586652395,-150.0,0.00021973,2]
[403840714,1769586652403,-500.0,0.00021973,2]
[403840715,1769586652412,-500.0,0.00021973,2]
[403840716,1769586652421,-500.0,0.00021973,2]
[403840717,1769586652430,-500.0,0.00021973,2]
[403840718,1769586652439,-500.0,0.00021973,2]
[403840719,1769586652449,-500.0,0.00021973,2]
[403840720,1769586652458,-500.0,0.00021973,2]
[403840721,1769586652466,-175.36382972,0.00021973,2]
[403840722,1769586652475,-151.01838811,0.00021973,2]
[403840723,1769586652484,-500.0,0.00021973,2]
[403840724,1769586652493,-500.0,0.00021973,2]
[403840725,1769586652503,-500.0,0.00021973,2]
[403840726,1769586652511,-500.5268179,0.00021973,2]
[403840727,1769586652520,-643.51237455,0.00021973,2]
[403840728,1769586652529,-500.0,0.00021973,2]
[403840729,1769586652538,-500.72062274,0.00021973,2]
[403840730,1769586652548,-160.08,0.00021973,2]
[403840731,1769586652557,-500.0,0.00021973,2]
[403840732,1769586652566,-500.0,0.00021973,2]
[403840733,1769586652575,-500.0,0.00021973,2]
[403840734,1769586652585,-500.0,0.00021973,2]
[403840735,1769586652595,-500.47145403,0.00021973,2]
[403840736,1769586652604,-500.0,0.00021973,2]
[403840737,1769586652614,-380.77450093,0.00021973,2]
[403840738,1769586652623,-500.0,0.00021973,2]
[403840739,1769586652632,-500.0,0.00021973,2]
[403840740,1769586652642,-500.0,0.00021973,2]
[403840741,1769586652652,-500.0,0.00021973,2]
[403840742,1769586652661,-500.0,0.00021973,2]
[403840743,1769586652673,-500.0,0.00021973,2]
[403840744,1769586652683,-500.0,0.00021973,2]
[403840745,1769586652693,-160.17378666,0.00021973,2]
[403840746,1769586652703,-210.16186211,0.00021973,2]
[403840747,1769586652712,-500.0,0.00021973,2]
[403840748,1769586652723,-500.0,0.00021973,2]
[403840749,1769586652732,-500.5908324,0.00021973,2]
[403840750,1769586652741,-500.0,0.00021973,2]
[403840751,1769586652751,-500.0,0.00021973,2]
[403840752,1769586652760,-501.00493719,0.00021973,2]
[403840753,1769586652769,-500.0,0.00021973,2]
[403840754,1769586652778,-500.0,0.00021973,2]
[403840755,1769586652914,-150.08480682,0.00021973,2]
[403840756,1769586652927,-500.0,0.00021973,2]
[403840757,1769586652936,-500.0,0.00021973,2]
[403840758,1769586652946,-163.31548462,0.00021973,2]
[403840759,1769586652955,-500.0,0.00021973,2]
[403840760,1769586652967,-431.84849978,0.00021973,2]
[403840761,1769586652977,-501.71470832,0.00021973,2]
[403840762,1769586652987,-500.0,0.00021973,2]
[403840763,1769586652997,-500.0,0.00021973,2]
[403840764,1769586653006,-500.0,0.00021973,2]
[403840765,1769586653016,-500.0,0.00021973,2]
[403840766,1769586653026,-391.88485596,0.00021973,2]
[403840767,1769586653036,-500.0,0.00021973,2]
[403840768,1769586653045,-563.34898698,0.00021973,2]
[403840769,1769586653055,-500.0,0.00021973,2]
[403840770,1769586653064,-150.42019668,0.00021973,2]
[403840771,1769586653074,-1000.0,0.00021976,2]
[403840772,1769586653084,-387.0,0.00021978,2]
[403840773,1769586653094,-150.0,0.00021991,2]
[403840774,1769586653104,-1047.47,0.00022,7]
[403840775,1769586653113,-168.05,0.00022,2]
[403840776,1769586653123,-69925.82184336,0.00022,4]
[403840777,1769586653133,-485.30551,0.00022,2]
[403840778,1769586653142,-485.30551,0.00022,2]
[403840779,1769586653152,-485.30552,0.00022,2]
[403840780,1769586653162,-200.0,0.00022027,2]
[403840781,1769586653171,-500.0,0.00022028,2]
[403840782,1769586653181,-500.0,0.00022082,2]
[403840783,1769586653191,-200.0,0.00022085,2]
[403840784,1769586653200,-200.0,0.00022112,2]
[403840785,1769586653210,-166.66,0.00022113,2]
[403840786,1769586653220,-340.6951672,0.00022131,2]
[403840787,1769586653230,-500.0,0.00022137,2]
[403840788,1769586653239,-500.0,0.00022192,2]
[403840789,1769586653250,-152.0,0.00022219,10]
[403840790,1769586653260,-500.0,0.00022247,2]
[403840791,1769586653270,-152.0,0.00022247,5]
[403840792,1769586653280,-713.45380711,0.00022261,16]
[403840793,1769586653290,-151.0,0.000223,2]
[403840794,1769586653299,-500.0,0.00022302,2]
[403840795,1769586653311,-500.0,0.00022356,2]
[403840796,1769586653321,-655.84,0.00022364,2]
[403840797,1769586653330,-500.0,0.00022411,2]
[403840798,1769586653340,-500.0,0.00022466,2]
[403840799,1769586653350,-153.146,0.000225,2]
[403840800,1769586653359,-173.98525455,0.000225,7]
[403840801,1769586653369,-500.0,0.0002252,2]
[403840802,1769586653379,-500.0,0.0002252,2]
[403840803,1769586653388,-500.0,0.0002252,2]
[403840804,1769586653398,-500.0,0.0002252,2]
[403840805,1769586653408,-1000.0,0.00022521,2]
[403840806,1769586653417,-150.0,0.00022521,2]
[403840807,1769586653427,-501.42687001,0.00022521,2]
[403840808,1769586653436,-1000.88636946,0.00022521,2]
[403840809,1769586653446,-302.18506883,0.00022521,2]
[403840810,1769586653456,-1000.0,0.00022521,2]
[403840811,1769586653465,-1000.0,0.00022521,2]
[403840812,1769586653475,-1000.0,0.00022521,2]
[403840813,1769586653485,-501.25105455,0.00022521,2]
[403840814,1769586653495,-501.35196587,0.00022521,2]
[403840815,1769586653504,-1000.0,0.00022521,2]
[403840816,1769586653514,-1000.0,0.00022521,2]
[403840817,1769586653523,-1000.0,0.00022521,2]
[403840818,1769586653533,-1000.0,0.00022521,2]
[403840819,1769586653543,-1000.0,0.00022521,2]
[403840820,1769586653553,-535.37073986,0.00022521,2]
[403840821,1769586653562,-1000.0,0.00022521,2]
[403840822,1769586653572,-1000.92692502,0.00022521,2]
[403840823,1769586653583,-1000.0,0.00022521,2]
[403840824,1769586653593,-694.5705092,0.00022521,2]
[403840825,1769586653603,-1000.0,0.00022521,2]
[403840826,1769586653613,-1001.74500581,0.00022521,2]
[403840827,1769586653623,-1000.81070746,0.00022521,2]
[403840828,1769586653633,-1000.0,0.00022521,2]
[403840829,1769586653643,-1001.48093969,0.00022521,2]
[403840830,1769586653653,-1000.0,0.00022521,2]
[403840831,1769586653663,-1000.0,0.00022521,2]
[403840832,1769586653677,-1000.0,0.00022521,2]
[403840833,1769586653687,-1000.0,0.00022521,2]
[403840834,1769586653696,-1001.07065245,0.00022521,2]
[403840835,1769586653707,-1142.18131833,0.00022521,2]
[403840836,1769586653718,-1000.0,0.00022521,2]
[403840837,1769586653728,-1000.0,0.00022521,2]
[403840838,1769586653739,-591.99620663,0.00022521,2]
[403840839,1769586653749,-1000.0,0.00022521,2]
[403840840,1769586653759,-1000.0,0.00022521,2]
[403840841,1769586653769,-1000.0,0.00022521,2]
[403840842,1769586653779,-1000.0,0.00022521,2]
[403840843,1769586653789,-1000.0,0.00022521,2]
[403840844,1769586653800,-500.0,0.00022521,2]
[403840845,1769586653809,-151.712915,0.00022521,2]
[403840846,1769586653819,-151.0,0.00022521,2]
[403840847,1769586653829,-151.0,0.00022521,2]
[403840848,1769586653838,-151.0,0.00022521,2]
[403840849,1769586653848,-1072.691392,0.00022521,2]
[403840850,1769586653857,-1072.691392,0.00022521,2]
[403840851,1769586653867,-1072.691392,0.00022521,2]
[403840852,1769586653876,-1072.691392,0.00022521,2]
[403840853,1769586653886,-151.0,0.00022521,2]
[403840854,1769586653896,-151.0,0.00022521,2]
[403840855,1769586653906,-151.0,0.00022521,2]
[403840856,1769586653915,-151.0,0.00022521,2]
[403840857,1769586653925,-250.377259,0.00022521,2]
[403840858,1769586653934,-250.377259,0.00022521,2]
[403840859,1769586653943,-250.377259,0.00022521,2]
[403840860,1769586653953,-250.377259,0.00022521,2]
[403840861,1769586653962,-761.604489,0.00022521,2]
[403840862,1769586653972,-761.604489,0.00022521,2]
[403840863,1769586653981,-761.604489,0.00022521,2]
[403840864,1769586653991,-761.604489,0.00022521,2]
[403840865,1769586654000,-151.0,0.00022521,2]
[403840866,1769586654009,-157.133269,0.00022521,2]
[403840867,1769586654019,-796.731528,0.00022521,2]
[403840868,1769586654028,-796.731528,0.00022521,2]
[403840869,1769586654038,-796.731528,0.00022521,2]
[403840870,1769586654048,-796.731528,0.00022521,2]
[403840871,1769586654057,-482.694764,0.00022521,2]
[403840872,1769586654067,-482.694764,0.00022521,2]
[403840873,1769586654077,-482.694764,0.00022521,2]
[403840874,1769586654087,-482.694764,0.00022521,2]
[403840875,1769586654096,-159.502135,0.00022521,2]
[403840876,1769586654106,-208.614424,0.00022521,2]
[403840877,1769586654115,-208.614424,0.00022521,2]
[403840878,1769586654125,-208.614424,0.00022521,2]
[403840879,1769586654135,-208.614424,0.00022521,2]
[403840880,1769586654145,-200.0,0.00022526,2]
[403840881,1769586654154,-200.0,0.00022541,2]
[403840882,1769586654164,-500.0,0.00022548,7]
[403840883,1769586654174,-500.0,0.00022548,7]
[403840884,1769586654183,-500.0,0.00022548,7]
[403840885,1769586654193,-500.0,0.00022576,2]
[403840886,1769586654203,-713.45380711,0.00022576,20]
[403840887,1769586654212,-92574.72693679,0.000226,2]
[403840888,1769586654222,-151.0,0.000226,2]
[403840889,1769586654232,-288.587944,0.000226,2]
[403840890,1769586654242,-288.587944,0.000226,2]
[403840891,1769586654252,-288.587944,0.000226,2]
[403840892,1769586654261,-288.587944,0.000226,2]
[403840893,1769586654271,-151.0,0.000226,2]
[403840894,1769586654280,-151.0,0.000226,2]
[403840895,1769586654289,-177.073195,0.000226,2]
[403840896,1769586654299,-177.073195,0.000226,2]
[403840897,1769586654310,-177.073195,0.000226,2]
[403840898,1769586654319,-177.073195,0.000226,2]
[403840899,1769586654329,-151.0,0.000226,2]
[403840900,1769586654338,-151.0,0.000226,2]
[403840901,1769586654348,-237.013504,0.000226,2]
[403840902,1769586654358,-237.013504,0.000226,2]
[403840903,1769586654368,-237.013504,0.000226,2]
[403840904,1769586654377,-237.013504,0.000226,2]
[403840905,1769586654387,-218.387859,0.000226,2]
[403840906,1769586654396,-218.387859,0.000226,2]
[403840907,1769586654406,-218.387859,0.000226,2]
[403840908,1769586654415,-218.387859,0.000226,2]
[403840909,1769586654425,-500.0,0.0002263,2]
[403840910,1769586654435,-500.0,0.00022685,2]
[403840911,1769586654444,-634.80759439,0.0002274,2]
[403840912,1769586654454,-373.07297731,0.00022788,2]
[403840913,1769586654464,-621.78829552,0.0002279,2]
[403840914,1769586654473,-152.0,0.00022809,11]
[403840915,1769586654483,-166.17,0.0002289,2]
[403840916,1769586654492,-713.45380711,0.00022892,24]
[403840917,1769586654502,-150.0,0.00022973,2]
[403840918,1769586654512,-164.35711812,0.00022973,2]
[403840919,1769586654521,-1500.0,0.00023068,2]
[403840920,1769586654531,-237.59342723,0.00023068,2]
[403840921,1769586654540,-1500.0,0.00023068,2]
[403840922,1769586654550,-500.84820247,0.00023068,2]
[403840923,1769586654559,-1500.0,0.00023068,2]
[403840924,1769586654568,-1500.0,0.00023068,2]
[403840925,1769586654578,-1500.0,0.00023068,2]
[403840926,1769586654587,-287.70306997,0.00023068,2]
[403840927,1769586654596,-1500.0,0.00023068,2]
[403840928,1769586654606,-1500.0,0.00023068,2]
[403840929,1769586654615,-1500.0,0.00023068,2]
[403840930,1769586654626,-1500.0,0.00023068,2]
[403840931,1769586654635,-1500.0,0.00023068,2]
[403840932,1769586654645,-500.8447642,0.00023068,2]
[403840933,1769586654654,-1500.0,0.00023068,2]
[403840934,1769586654664,-1500.0,0.00023068,2]
[403840935,1769586654676,-1500.0,0.00023068,2]
[403840936,1769586654685,-1500.79902774,0.00023068,2]
[403840937,1769586654695,-892.31600329,0.00023068,2]
[403840938,1769586654704,-901.18542814,0.00023068,2]
[403840939,1769586654715,-1502.0815119,0.00023068,2]
[403840940,1769586654725,-1500.0,0.00023068,2]
[403840941,1769586654734,-1500.0,0.00023068,2]
[403840942,1769586654745,-1502.13077454,0.00023068,2]
[403840943,1769586654755,-1500.0,0.00023068,2]
[403840944,1769586654765,-655.84,0.00023203,2]
[403840945,1769586654774,-713.45380711,0.00023207,28]
[403840946,1769586654784,-5122.03509608,0.00023229,2]
[403840947,1769586654793,-201.84147665,0.00023259,2]
[403840948,1769586654802,-168.05,0.000233,2]
[403840949,1769586654811,-501.0,0.00023391,7]
[403840950,1769586654821,-2000.0,0.000234,2]
[403840951,1769586654831,-152.0,0.000234,12]
[403840952,1769586654840,-250.09009051,0.000234,5]
[403840953,1769586654849,-152.0,0.00023431,6]
[403840954,1769586654858,-211.99503792,0.00023503,2]
[403840955,1769586654868,-250.0,0.00023521,2]
[403840956,1769586654878,-713.45380711,0.00023522,31]
[403840957,1769586654888,-1047.47,0.000236,7]
[403840958,1769586654897,-500.0,0.00023616,2]
[403840959,1769586654907,-500.0,0.00023616,2]
[403840960,1769586654916,-436.39003316,0.00023616,2]
[403840961,1769586654925,-501.4315865,0.00023616,2]
[403840962,1769586654934,-1002.59867678,0.00023616,2]
[403840963,1769586654943,-461.93263446,0.00023616,2]
[403840964,1769586654952,-502.50538317,0.00023616,2]
[403840965,1769586654961,-563.2071984,0.00023616,2]
[403840966,1769586654971,-1002.31324389,0.00023616,2]
[403840967,1769586654979,-619.15242156,0.00023616,2]
[403840968,1769586654989,-174.36957488,0.00023616,2]
[403840969,1769586654998,-288.94047473,0.00023616,2]
[403840970,1769586655007,-2000.0,0.00023616,2]
[403840971,1769586655369,-501.87452206,0.00023616,2]
[403840972,1769586655396,-501.67955883,0.00023616,2]
[403840973,1769586655408,-501.66009161,0.00023616,2]
[403840974,1769586655418,-615.0,0.00023677,2]
[403840975,1769586655428,-1333.0,0.00023677,2]
[403840976,1769586655438,-3477.0,0.00023677,2]
[403840977,1769586655450,-1204.0,0.00023677,2]
[403840978,1769586655461,-567.0,0.00023677,2]
[403840979,1769586655471,-2443.0,0.00023677,2]
[403840980,1769586655480,-4832.0,0.00023677,2]
[403840981,1769586655490,-713.45380711,0.00023837,35]
[403840982,1769586655500,-200.0,0.00023948,2]
[403840983,1769586655510,-655.84,0.00024041,2]
[403840984,1769586655520,-350.0,0.00024068,2]
[403840985,1769586655529,-713.45380711,0.00024153,39]
[403840986,1769586655539,-386.87667747,0.00024157,2]
[403840987,1769586655548,-2633.37011008,0.00024164,2]
[403840988,1769586655558,-713.45380711,0.00024468,42]
[403840989,1769586655571,-168.05,0.000245,2]
[403840990,1769586655580,-150.00001483,0.00024523,24]
[403840991,1769586655589,-166.17,0.00024525,2]
[403840992,1769586655599,-152.0,0.00024616,7]
[403840993,1769586655608,-450.0,0.00024616,2]
[403840994,1769586655618,-1000.0,0.00024658,2]
[403840995,1769586655627,-151.0,0.00024658,2]
[403840996,1769586655636,-151.0,0.00024658,2]
[403840997,1769586655646,-152.356874,0.00024658,2]
[403840998,1769586655655,-150.0,0.00024658,2]
[403840999,1769586655665,-151.0,0.00024658,2]
[403841000,1769586655678,-500.0,0.0002474,7]
[403841001,1769586655688,-500.0,0.0002474,7]
[403841002,1769586655697,-500.0,0.0002474,7]
[403841003,1769586655708,-5122.03509608,0.00024773,2]
[403841004,1769586655719,-713.45380711,0.00024783,46]
[403841005,1769586655729,-24965.5853997,0.000248,3]
[403841006,1769586656521,-5176.03152716,0.000248,3]
[403841007,1769586656533,-890.978,0.000248,3]
[403841008,1769586656554,-151.0,0.00018,2]
[403841009,1769586656563,-8939.0,0.000248,3]
[403841010,1769586656574,-849.23220107,0.000248,3]
[403841011,1769586656700,-151.0,0.00015243,2]
[403841012,1769586656709,-2026.02669856,0.0001752,2]